fUSD/lending_fUSD_20241101
["ID","MTS","AMOUNT","RATE_DAILY","PERIOD"]
[341137890,1730460639944,-390.62850156,0.00041095,3]
[341137929,1730460642876,-637.56111049,0.00041094,2]
[341137930,1730460642887,-109.37149844,0.00041095,3]
[341137931,1730460642898,-500.0,0.00041095,3]
[341137932,1730460642908,-800.92,0.00041095,3]
[341137935,1730460643023,-500.0,0.00041095,3]
[341137936,1730460643033,-501.48461324,0.00041095,3]
[341137937,1730460643042,-402.72230042,0.00041095,3]
[341137939,1730460646087,-101.70390822,0.00041095,3]
[341137940,1730460646097,-292.4280116,0.00041095,3]
[341137945,1730460852917,1020.67,0.00042464,120]
[341137946,1730460853377,1020.67,0.00043149,120]
[341137947,1730460853776,151.0,0.0003,120]
[341137948,1730460984395,886.58,0.00041095,120]
[341137949,1730460984657,886.58,0.00041369,120]
[341137950,1730460985060,886.58,0.00041643,120]
[341137951,1730460985208,657.62454805,0.00041917,120]
[341137952,1730460985230,228.95545195,0.00041917,120]
[341137954,1730461040994,157.46,0.00015342,2]
[341137955,1730461055666,176.97,0.00039885,120]
[341137956,1730461057866,886.58,0.00042,120]
[341137957,1730461129607,6707.49454805,0.00042,120]
[341137958,1730461179317,2167.53,0.00041,120]
[341137959,1730461279205,250.0,0.00017,2]
[341137960,1730461280283,300.0,0.00019,2]
[341137961,1730461281373,350.0,0.00021,2]
[341137962,1730461499672,-400.0,0.00023,2]
[341137963,1730461499697,-1082.00677194,0.000249,2]
[341137964,1730461499721,-450.0,0.00025,2]
[341137965,1730461531812,158.41,0.00015342,2]
[341137967,1730461629123,-794.0,0.00033,2]
[341137968,1730461629143,-1170.54558,0.00035792,2]
[341137969,1730461629164,-385.78825,0.00035972,2]
[341137970,1730461629184,-182.446,0.00035972,2]
[341137971,1730461629205,-477.24,0.00037295,2]
[341137972,1730461629225,-3569.41199229,0.00037739,2]
[341137973,1730461639110,-15335.62096797,0.00037739,2]
[341137980,1730461831720,-192.38,0.00038164,2]
[341137981,1730461831730,-173.35,0.0003878,2]
[341137982,1730461831739,-2874.64432773,0.00039131,2]
[341137983,1730461831993,-16997.82501861,0.00039131,2]
[341137984,1730461832002,-153.0,0.00039131,2]
[341137985,1730461832011,-153.0,0.00039131,2]
[341137986,1730461832020,-153.0,0.00039131,2]
[341137987,1730461832029,-153.0,0.00039131,2]
[341137988,1730461832038,-153.0,0.00039137,2]
[341137990,1730461832048,-3076.04,0.00039137,2]
[341137992,1730461832057,-999.99,0.00039143,2]
[341137994,1730461832067,-601.56,0.00039143,30]
[341137996,1730461832076,-1730.59,0.00039172,2]
[341137997,1730461832085,-4255.64,0.0003922,2]
[341137999,1730461832094,-477.24,0.00039559,2]
[341138001,1730461832103,-904.65,0.00039742,2]
[341138003,1730461832112,-712.0,0.00039781,2]
[341138005,1730461832121,-173.35,0.00039871,2]
[341138007,1730461832131,-150.0,0.00040274,2]
[341138009,1730461832141,-150.0,0.00040274,2]
[341138011,1730461832150,-150.0,0.00040274,2]
[341138013,1730461832159,-150.0,0.00040278,2]
[341138015,1730461832168,-360.52897589,0.0004068,2]
[341138017,1730461832177,-360.52897589,0.00040684,2]
[341138019,1730461832187,-150.0,0.00040697,2]
[341138021,1730461832196,-360.52897589,0.00040697,2]
[341138023,1730461832205,-360.52897589,0.000407,2]
[341138025,1730461832214,-150.0,0.00040705,2]
[341138027,1730461832224,-150.0,0.00040709,2]
[341138029,1730461832233,-150.0,0.00040713,2]
[341138031,1730461832243,-150.0,0.00040719,2]
[341138033,1730461832251,-150.0,0.00040721,2]
[341138035,1730461832260,-150.0,0.00040722,2]
[341138036,1730461832270,-450.0,0.00040722,4]
[341138038,1730461832280,-150.0,0.00040724,2]
[341138040,1730461832289,-150.0,0.00040725,2]
[341138042,1730461832299,-150.0,0.00040727,2]
[341138044,1730461832308,-150.0,0.00040728,2]
[341138046,1730461832317,-150.0,0.00040733,2]
[341138048,1730461832326,-150.0,0.00040736,2]
[341138050,1730461832335,-150.0,0.00040736,2]
[341138051,1730461832344,-150.0,0.00040742,2]
[341138053,1730461832354,-150.0,0.00040743,2]
[341138055,1730461832363,-150.0,0.00040745,2]
[341138057,1730461832372,-150.0,0.00040749,2]
[341138059,1730461832381,-150.0,0.00040752,2]
[341138061,1730461832391,-150.0,0.00040753,2]
[341138063,1730461832400,-150.0,0.00040763,2]
[341138065,1730461832409,-150.0,0.00040767,2]
[341138067,1730461832419,-150.0,0.00040767,2]
[341138069,1730461832428,-150.0,0.00040776,2]
[341138071,1730461832437,-150.0,0.00040781,2]
[341138073,1730461832446,-150.0,0.00040781,2]
[341138075,1730461832455,-150.0,0.00040782,2]
[341138077,1730461832464,-150.0,0.00040783,2]
[341138079,1730461832473,-360.52897589,0.00040787,2]
[341138081,1730461832482,-150.0,0.00040788,2]
[341138083,1730461832492,-150.0,0.00040789,2]
[341138085,1730461832500,-150.0,0.00040796,2]
[341138086,1730461832510,-150.0,0.00040801,2]
[341138088,1730461832519,-295.73750005,0.00040804,2]
[341138090,1730461832528,-150.0,0.00040811,2]
[341138092,1730461832537,-150.0,0.00040812,2]
[341138094,1730461832546,-150.0,0.00040815,2]
[341138096,1730461832555,-150.0,0.00040821,2]
[341138097,1730461832567,-150.0,0.00040828,2]
[341138099,1730461832575,-150.0,0.00040828,2]
[341138101,1730461832584,-150.0,0.00040831,2]
[341138103,1730461832594,-150.0,0.00040831,2]
[341138105,1730461832603,-150.0,0.00040832,2]
[341138107,1730461832612,-150.0,0.00040835,2]
[341138109,1730461832621,-150.0,0.00040836,2]
[341138111,1730461832630,-150.0,0.00040836,2]
[341138113,1730461832639,-150.0,0.00040836,2]
[341138115,1730461832648,-150.0,0.00040838,2]
[341138117,1730461832657,-150.0,0.00040841,2]
[341138119,1730461832667,-150.0,0.00040841,2]
[341138121,1730461832676,-150.0,0.00040842,2]
[341138123,1730461832685,-150.0,0.00040843,2]
[341138125,1730461832695,-150.0,0.00040846,2]
[341138127,1730461832704,-150.0,0.00040847,2]
[341138129,1730461832713,-150.0,0.0004085,2]
[341138131,1730461832723,-150.0,0.00040851,2]
[341138133,1730461832732,-150.0,0.00040851,2]
[341138135,1730461832741,-150.0,0.00040851,2]
[341138137,1730461832751,-150.0,0.00040853,2]
[341138138,1730461832762,-150.0,0.00040856,2]
[341138139,1730461832774,-150.0,0.00040857,2]
[341138140,1730461832784,-150.0,0.00040858,2]
[341138142,1730461832793,-150.0,0.0004086,2]
[341138143,1730461832802,-150.0,0.00040865,2]
[341138144,1730461832811,-150.0,0.00040866,2]
[341138145,1730461832820,-150.0,0.00040868,2]
[341138146,1730461832829,-150.0,0.00040869,2]
[341138147,1730461832838,-150.0,0.0004087,2]
[341138148,1730461832848,-150.0,0.00040872,2]
[341138149,1730461832857,-150.0,0.00040876,2]
[341138150,1730461832867,-150.0,0.00040877,2]
[341138151,1730461832876,-150.0,0.00040877,2]
[341138152,1730461832885,-150.0,0.00040879,2]
[341138153,1730461832895,-150.0,0.0004088,2]
[341138154,1730461832904,-150.0,0.00040886,2]
[341138155,1730461832913,-150.0,0.00040889,2]
[341138156,1730461832923,-150.0,0.00040892,2]
[341138157,1730461832933,-150.0,0.00040895,2]
[341138158,1730461832942,-150.0,0.00040896,2]
[341138159,1730461832951,-150.0,0.00040898,2]
[341138160,1730461832961,-150.0,0.00040901,2]
[341138161,1730461832973,-150.0,0.00040905,2]
[341138162,1730461832983,-150.0,0.00040906,2]
[341138163,1730461832993,-150.0,0.00040907,2]
[341138164,1730461833004,-150.0,0.00040908,2]
[341138165,1730461833014,-150.0,0.00040913,2]
[341138166,1730461833023,-150.0,0.00040922,2]
[341138167,1730461833034,-150.0,0.00040924,2]
[341138168,1730461833044,-150.0,0.00040925,2]
[341138169,1730461833053,-150.0,0.00040926,2]
[341138170,1730461833063,-150.0,0.00040927,2]
[341138171,1730461833072,-150.0,0.00040931,2]
[341138172,1730461833082,-150.0,0.00040932,2]
[341138173,1730461833091,-150.0,0.00040935,2]
[341138174,1730461833101,-150.0,0.00040936,2]
[341138175,1730461833111,-150.0,0.00040937,2]
[341138176,1730461833120,-150.0,0.00040938,2]
[341138177,1730461833130,-150.0,0.00040939,2]
[341138178,1730461833140,-150.0,0.00040948,2]
[341138179,1730461833149,-150.0,0.00040948,2]
[341138180,1730461833159,-150.0,0.00040951,2]
[341138181,1730461833168,-150.0,0.00040954,2]
[341138182,1730461833178,-150.0,0.00040957,2]
[341138183,1730461833187,-173.35,0.00040961,2]
[341138184,1730461833197,-293.4923275,0.00040964,2]
[341138185,1730461833206,-1747.7886,0.00040995,2]
[341138186,1730461833215,-21924.0889553,0.00040995,2]
[341138187,1730461833229,-3308.03132473,0.00040995,2]
[341138189,1730461837910,-3623.74224762,0.00040995,2]
[341138190,1730461838364,-2395.92863442,0.00040995,2]
[341138191,1730461838380,-2855.78136755,0.00040995,2]
[341138192,1730461838391,-7353.18389799,0.00040995,2]
[341138194,1730461839884,-361.366005,0.00040995,2]
[341138195,1730461839959,-457.37779976,0.00040995,2]
[341138196,1730461840025,-836.57324192,0.00040995,2]
[341138197,1730461842823,-7139.10691586,0.00040995,2]
[341138198,1730461842834,-1406.52053389,0.00040995,2]
[341138199,1730461842978,-18512.09409953,0.00040995,2]
[341138208,1730461845899,-1399.92136283,0.00040995,2]
[341138214,1730461857444,150.0,0.00019982,2]
[341138215,1730461857493,150.0,0.00019745,2]
[341138216,1730461859473,268.72625,0.00035865,2]
[341138217,1730461861538,185.075,0.00035865,2]
[341138219,1730462046211,158.79,0.00015342,2]
[341138220,1730462055811,151.0,0.0003,120]
[341138221,1730462258929,380.0,0.000393,120]
[341138222,1730462665777,5.71,0.00039015,120]
[341138223,1730462719736,157.66,0.00015342,2]
[341138225,1730462838141,-165.43675,0.00034439,2]
[341138226,1730462838161,-485.046082,0.00036975,2]
[341138227,1730462838182,-429.51,0.00037161,2]
[341138228,1730462838202,-170.17,0.00038211,2]
[341138229,1730462838222,-946.0,0.00038356,10]
[341138230,1730462838241,-6209.26,0.00038871,63]
[341138231,1730462838260,-200.0,0.00038911,2]
[341138232,1730462838279,-3266.04044174,0.00038911,2]
[341138233,1730462847881,-356.62094202,0.00038911,2]
[341138244,1730463031989,-170.17,0.0003851,2]
[341138245,1730463031999,-3997.07861624,0.00038911,2]
[341138246,1730463032008,-246.07,0.0003896,2]
[341138247,1730463032017,-171.26,0.00039015,120]
[341138248,1730463032027,-153.0,0.00039202,2]
[341138249,1730463032035,-153.0,0.00039202,2]
[341138250,1730463032045,-153.0,0.00039202,2]
[341138251,1730463032054,-153.0,0.00039206,2]
[341138252,1730463032063,-153.0,0.00039206,2]
[341138253,1730463032072,-153.0,0.00039206,2]
[341138254,1730463032081,-255.52,0.00039368,2]
[341138255,1730463032090,-452.32,0.00039376,2]
[341138256,1730463032099,-235.0,0.000394,2]
[341138257,1730463032108,-429.51,0.00039425,2]
[341138258,1730463032117,-150.0,0.00039439,2]
[341138259,1730463032126,-1000.0,0.00039511,2]
[341138260,1730463032135,-170.17,0.00039593,2]
[341138261,1730463032144,-582.60356833,0.0004,60]
[341138262,1730463032154,-559.10889525,0.00040634,2]
[341138263,1730463032164,-170.17,0.00040676,2]
[341138264,1730463032173,-559.10889525,0.00040697,2]
[341138265,1730463032183,-6.20805868,0.00040709,2]
[341138266,1730463032198,-552.90083657,0.00040709,2]
[341138268,1730463032313,-155.007,0.00040738,2]
[341138269,1730463032323,-150.836,0.00040738,2]
[341138271,1730463032332,-13585.0,0.00040738,2]
[341138272,1730463032342,-1155.0,0.00040738,2]
[341138274,1730463032355,-5909.0,0.00040738,2]
[341138276,1730463032365,-1088.0,0.00040738,2]
[341138277,1730463032374,-559.10889525,0.00040758,2]
[341138278,1730463032383,-559.10889525,0.00040789,2]
[341138279,1730463032392,-1013.0,0.000408,7]
[341138280,1730463032402,-150.0,0.00040822,2]
[341138281,1730463032411,-2500.0,0.00040899,2]
[341138282,1730463032420,-151.76010563,0.00040939,28]
[341138283,1730463032429,-712.35,0.00040988,10]
[341138284,1730463032442,-151.922,0.0004099,59]
[341138285,1730463032451,-200.0,0.00040995,7]
[341138286,1730463032460,-2000.0,0.00040995,7]
[341138287,1730463032470,-14749.61924768,0.00040998,2]
[341138288,1730463032478,-8385.12834432,0.00040998,2]
[341138289,1730463032491,-3393.18683747,0.00040998,2]
[341138290,1730463032514,-1836.39289519,0.00040998,2]
[341138291,1730463032526,-979.68026734,0.00040998,2]
[341138292,1730463032541,-721.01,0.00040998,2]
[341138310,1730463037968,-783.5840292,0.00040998,2]
[341138311,1730463037980,-1301.15361802,0.00040998,2]
[341138312,1730463037991,-749.86877271,0.00040998,2]
[341138313,1730463038003,-6329.97878758,0.00040998,2]
[341138314,1730463038021,-70126.10353715,0.00040998,2]
[341138315,1730463038032,-701.384344,0.00040998,2]
[341138324,1730463039862,-70118.71726656,0.00040998,2]
[341138325,1730463039970,-2181.97650998,0.00040998,2]
[341138326,1730463039981,-252.8994,0.00040998,2]
[341138327,1730463039992,-1051.38386584,0.00040998,2]
[341138346,1730463043080,-150.0,0.00040952,2]
[341138347,1730463043092,-265.78,0.00040988,10]
[341138348,1730463043101,-5104.9810999,0.00040998,2]
[341138352,1730463045975,-494.11058166,0.00040995,2]
[341138353,1730463045986,-322.61043434,0.00040998,2]
[341138358,1730463086045,250.0,0.00017,2]
[341138360,1730463206556,156.97,0.00015342,2]
[341138362,1730463518368,150.0,0.0002201,2]
[341138364,1730463749685,157.17,0.00015342,2]
[341138367,1730463908381,49378.2,0.00016,2]
[341138368,1730463908411,64006.7207363,0.00016,2]
[341138369,1730463908487,38416.34269615,0.00016,2]
[341138371,1730464036156,-20136.73508599,0.000225,2]
[341138372,1730464053142,-6645.96935781,0.000225,2]
[341138373,1730464053164,-456.58629826,0.00035765,2]
[341138374,1730464150098,-39204.02717128,0.000232,2]
[341138375,1730464150119,-12059.14298155,0.00023922,2]
[341138376,1730464150139,-388.85140456,0.00035765,2]
[341138377,1730464150159,-2124.57154883,0.00035865,2]
[341138378,1730464150179,-234.0305,0.00035865,2]
[341138379,1730464150198,-234.03,0.00035865,2]
[341138380,1730464150218,-567.31,0.00036363,2]
[341138381,1730464150237,-151.82,0.00036367,2]
[341138382,1730464150817,2695.784858,0.00023084,2]
[341138383,1730464152967,739.02075,0.00035865,2]
[341138394,1730464232027,-216.26,0.00037351,2]
[341138396,1730464232037,-1143.59,0.00037632,120]
[341138397,1730464232046,-200.0,0.00037725,2]
[341138398,1730464232055,-165.31,0.00037755,2]
[341138399,1730464232065,-3144.05,0.00037755,2]
[341138400,1730464232074,-250.0,0.00037796,2]
[341138401,1730464232084,-150.0,0.00037834,2]
[341138402,1730464232093,-1965.03,0.0003786,2]
[341138403,1730464232102,-3997.02,0.00037884,2]
[341138404,1730464232111,-999.99,0.00037884,2]
[341138405,1730464232121,-200.0,0.00037918,2]
[341138406,1730464232130,-473.55,0.00037918,30]
[341138407,1730464232139,-185.94,0.00037921,120]
[341138408,1730464232148,-216.26,0.00037951,2]
[341138409,1730464232158,-260.88,0.00037952,2]
[341138410,1730464232167,-152.66,0.00038033,2]
[341138411,1730464232182,-1960.63,0.00038056,2]
[341138412,1730464232191,-926.9,0.00038073,2]
[341138413,1730464232201,-250.0,0.00038223,120]
[341138414,1730464232211,-177.76,0.00038298,2]
[341138415,1730464232221,-1000.0,0.00038303,2]
[341138416,1730464232231,-458.95,0.00038303,2]
[341138417,1730464232240,-216.26,0.00038551,2]
[341138418,1730464232249,-567.31,0.00038627,2]
[341138419,1730464232259,-153.0,0.00038995,2]
[341138420,1730464232268,-153.0,0.00038995,2]
[341138421,1730464232277,-1882.79,0.00039065,2]
[341138422,1730464232286,-3426.39,0.00039117,2]
[341138423,1730464232296,-332.93,0.0003912,2]
[341138424,1730464232306,-216.26,0.00039151,2]
[341138425,1730464232315,-158.58,0.000392,2]
[341138426,1730464232324,-23900.0,0.00039212,2]
[341138427,1730464232334,-169.9,0.00039215,2]
[341138428,1730464232349,-1878.65859783,0.00039242,15]
[341138429,1730464232359,-477.04,0.00039277,10]
[341138430,1730464232368,-397.53,0.00039277,10]
[341138431,1730464232379,-331.27,0.00039277,10]
[341138432,1730464232390,-66474.0,0.00039287,2]
[341138433,1730464232400,-500.24,0.00039342,2]
[341138434,1730464232409,-197.27,0.00039342,2]
[341138435,1730464232420,-3348.46,0.00039342,120]
[341138436,1730464232437,-250.0,0.0003942,2]
[341138437,1730464232447,-500.0,0.00039473,2]
[341138439,1730464232456,-869.34,0.0003949,3]
[341138441,1730464232466,-214.96,0.00039497,120]
[341138443,1730464232476,-1635.80546792,0.00039499,5]
[341138446,1730464232503,-169.58759008,0.00039499,5]
[341138447,1730464232514,-826.49077992,0.000395,2]
[341138448,1730464232525,-781.51629935,0.000395,2]
[341138450,1730464238452,-789.17285067,0.000395,2]
[341138451,1730464238467,-14158.02472563,0.000395,2]
[341138452,1730464238478,-4075.78836734,0.000395,2]
[341138453,1730464238489,-5038.08353154,0.000395,2]
[341138508,1730464243064,-33121.94989149,0.000395,2]
[341138509,1730464243076,-767.5252689,0.000395,2]
[341138510,1730464243121,-2101.12313002,0.000395,2]
[341138511,1730464243132,-749.64207129,0.000395,2]
[341138512,1730464243178,-40741.60593894,0.000395,2]
[341138513,1730464243238,-1751.9999997,0.000395,2]
[341138520,1730464246281,-940.8088,0.000395,2]
[341138524,1730464682043,300.0,0.00019725,2]
[341138525,1730464730971,421.0,0.00021,10]
[341138526,1730464888476,250.0,0.00017,2]
[341138527,1730464889585,300.0,0.00019,2]
[341138528,1730464890687,350.0,0.00021,2]
[341138529,1730465245191,-3748.90307764,0.00025124,2]
[341138530,1730465245212,-3361.42685199,0.00030399,2]
[341138531,1730465245234,-1170.54558,0.00035792,2]
[341138532,1730465245256,-345.426,0.00035972,2]
[341138533,1730465245277,-273.669,0.00035972,2]
[341138534,1730465245299,-576.95,0.00036557,2]
[341138535,1730465245321,-1562.01957082,0.00037164,2]
[341138536,1730465245343,-189.67,0.00037374,2]
[341138537,1730465245364,-183.23,0.00037807,2]
[341138538,1730465245384,-463.45,0.00038198,2]
[341138539,1730465245404,-250.0,0.0003838,2]
[341138540,1730465245425,-183.23,0.00038414,2]
[341138541,1730465245444,-157.6,0.00038462,2]
[341138542,1730465245464,-1000.0,0.000385,30]
[341138543,1730465245489,-7215.92757962,0.00038582,2]
[341138545,1730465411136,533.58822272,0.00035,2]
[341138546,1730465413391,192.894,0.00035901,2]
[341138547,1730465415271,182.446,0.00035901,2]
[341138556,1730465432367,-16684.07242038,0.00038582,2]
[341138557,1730465432377,-153.0,0.00038642,2]
[341138558,1730465432386,-153.0,0.00038642,2]
[341138559,1730465432395,-153.0,0.00038647,2]
[341138560,1730465432404,-3569.41199229,0.0003867,2]
[341138561,1730465432413,-200.0,0.0003867,2]
[341138562,1730465432422,-250.0,0.0003869,2]
[341138563,1730465432432,-576.95,0.00038821,2]
[341138564,1730465432441,-151.922,0.00038872,53]
[341138565,1730465432450,-9922.69250461,0.00038872,2]
[341138566,1730465432461,-800.0,0.00038891,2]
[341138567,1730465432471,-17492.5984049,0.00038926,2]
[341138568,1730465432480,-15530.16,0.00038927,2]
[341138569,1730465432489,-1762.71,0.00038938,2]
[341138570,1730465432498,-1000.0,0.00039,30]
[341138571,1730465432508,-183.23,0.00039022,2]
[341138572,1730465432517,-454.00870263,0.0003911,2]
[341138573,1730465432528,-714.0,0.000392,2]
[341138574,1730465432538,-19898.26834521,0.000395,2]
[341138575,1730465432547,-183.23,0.00039629,2]
[341138576,1730465432557,-942.38269314,0.00039931,2]
[341138577,1730465432566,-328.75,0.0004,120]
[341138578,1730465432575,-276.06,0.00040021,10]
[341138579,1730465432585,-230.05,0.00040021,10]
[341138581,1730465432594,-191.71,0.00040021,10]
[341138583,1730465432603,-944.98,0.00040031,2]
[341138585,1730465432613,-3365.9407,0.00040031,2]
[341138587,1730465432622,-5752.7449,0.00040031,2]
[341138589,1730465432632,-273.8877,0.00040031,2]
[341138591,1730465432642,-21455.8201,0.00040031,2]
[341138593,1730465432652,-1810.42739385,0.00040031,15]
[341138595,1730465432661,-4834.71221426,0.00040131,2]
[341138597,1730465432674,-32862.58329964,0.00040131,2]
[341138599,1730465432684,-151.0,0.00040131,14]
[341138601,1730465432693,-151.0,0.00040131,7]
[341138603,1730465432703,-178.755886,0.00040131,14]
[341138604,1730465432714,-178.755886,0.00040131,14]
[341138605,1730465432723,-243.093452,0.00040131,14]
[341138606,1730465432732,-151.0,0.00040131,14]
[341138607,1730465432741,-151.0,0.00040131,14]
[341138608,1730465432750,-151.0,0.00040131,14]
[341138609,1730465432759,-183.23,0.00040237,2]
[341138610,1730465432768,-677.08147852,0.00040359,2]
[341138611,1730465432782,-265.30121461,0.00040359,2]
[341138612,1730465432792,-24335.0,0.00040373,2]
[341138613,1730465432802,-215.0926,0.00040557,2]
[341138615,1730465432813,-239.33300838,0.0004061,2]
[341138617,1730465432826,-239.33300838,0.0004062,2]
[341138619,1730465432837,-239.33300838,0.00040657,2]
[341138621,1730465432847,-42404.9191,0.00040661,2]
[341138623,1730465432858,-629.42286559,0.00040661,30]
[341138625,1730465432869,-1491.55161855,0.00040661,30]
[341138627,1730465432880,-151.0,0.00040661,7]
[341138629,1730465432890,-178.755886,0.00040661,14]
[341138631,1730465432901,-178.755886,0.00040661,14]
[341138632,1730465432912,-387.234521,0.00040661,14]
[341138633,1730465432922,-387.234521,0.00040661,14]
[341138634,1730465432931,-151.0,0.00040661,14]
[341138635,1730465432942,-151.0,0.00040661,14]
[341138636,1730465432952,-151.0,0.00040661,14]
[341138637,1730465432963,-151.0,0.00040661,14]
[341138638,1730465432972,-168.42,0.0004067,2]
[341138639,1730465432983,-486.0334,0.00040698,2]
[341138640,1730465432994,-500.0,0.00040698,2]
[341138641,1730465433003,-161.73875368,0.000407,28]
[341138642,1730465433013,-239.33300838,0.00040717,2]
[341138643,1730465433022,-12537.17636052,0.00040761,2]
[341138644,1730465433031,-173874.36080944,0.00040761,2]
[341138645,1730465438282,-21405.97668292,0.00040761,2]
[341138646,1730465438291,-1250.0,0.00040761,2]
[341138647,1730465438301,-454.183,0.00040761,2]
[341138648,1730465438311,-937.0,0.00040761,2]
[341138649,1730465438320,-557.0,0.00040761,2]
[341138650,1730465438329,-242.67,0.00040761,2]
[341138651,1730465438339,-1791.0,0.00040761,2]
[341138652,1730465438349,-3371.0,0.00040761,2]
[341138653,1730465438358,-2903.0,0.00040761,2]
[341138654,1730465438369,-583.636,0.00040761,2]
[341138655,1730465438378,-812.0,0.00040761,2]
[341138656,1730465438388,-812.673,0.00040761,2]
[341138657,1730465438397,-299.164,0.00040761,2]
[341138658,1730465438408,-150.836,0.00040761,2]
[341138659,1730465438419,-13585.0,0.00040761,2]
[341138660,1730465438430,-1080.739,0.00040761,2]
[341138661,1730465438439,-236.104,0.00040761,2]
[341138662,1730465438450,-156.646,0.00040761,2]
[341138663,1730465438461,-254.337,0.00040761,2]
[341138664,1730465438471,-1088.0,0.00040761,2]
[341138665,1730465438480,-152.061076,0.00040761,14]
[341138666,1730465438489,-151.0,0.00040761,14]
[341138667,1730465438498,-897.56769841,0.0004077,30]
[341138668,1730465438507,-481.81672539,0.00040786,2]
[341138669,1730465438516,-942.38269313,0.00040786,2]
[341138670,1730465438526,-922.9565,0.00040797,2]
[341138671,1730465438536,-387.234521,0.00040797,14]
[341138672,1730465438546,-387.234521,0.00040797,14]
[341138673,1730465438556,-151.0,0.00040797,14]
[341138674,1730465438565,-151.0,0.00040797,14]
[341138675,1730465438574,-151.0,0.00040797,14]
[341138676,1730465438583,-151.0,0.00040798,14]
[341138677,1730465438592,-151.0,0.00040798,14]
[341138678,1730465438602,-157.017634,0.00040798,14]
[341138679,1730465438611,-157.017634,0.00040798,14]
[341138680,1730465438621,-151.0,0.00040798,14]
[341138681,1730465438631,-151.0,0.00040798,14]
[341138682,1730465438640,-151.0,0.00040798,7]
[341138683,1730465438651,-178.755886,0.00040798,14]
[341138684,1730465438660,-24568.2142,0.00040798,2]
[341138685,1730465438670,-157.017634,0.000408,14]
[341138686,1730465438680,-157.017634,0.000408,14]
[341138687,1730465438690,-151.0,0.000408,14]
[341138688,1730465438700,-151.0,0.000408,7]
[341138689,1730465438712,-178.755886,0.000408,14]
[341138690,1730465438722,-387.234521,0.000408,14]
[341138692,1730465438731,-387.234521,0.000408,14]
[341138693,1730465438740,-198.011822,0.000408,14]
[341138694,1730465438750,-151.0,0.000408,14]
[341138695,1730465438760,-151.0,0.000408,14]
[341138696,1730465438770,-150.0,0.00040818,2]
[341138698,1730465438780,-150.0,0.00040819,2]
[341138699,1730465438789,-150.0,0.00040822,2]
[341138700,1730465438799,-183.23,0.00040844,2]
[341138701,1730465438809,-150.0,0.00040846,2]
[341138702,1730465438821,-150.0,0.00040847,2]
[341138703,1730465438830,-498.64183754,0.00040873,5]
[341138704,1730465438839,-150.0,0.00040873,2]
[341138705,1730465438849,-150.0,0.0004088,2]
[341138706,1730465438859,-150.0,0.00040883,2]
[341138707,1730465438869,-227.52042,0.00040885,14]
[341138708,1730465438878,-150.0,0.00040886,2]
[341138709,1730465438888,-387.234521,0.00040886,14]
[341138710,1730465438899,-387.234521,0.00040886,14]
[341138711,1730465438908,-151.0,0.00040886,14]
[341138712,1730465438918,-151.0,0.00040886,14]
[341138713,1730465438928,-150.0,0.00040889,2]
[341138714,1730465438937,-150.0,0.00040894,2]